[Event "VII Lorca Open 2018"]
[Site "Lorca"]
[Date "2018.12.28"]
[Round "5"]
[White "Sanchez Jerez, Emilio Miguel"]
[Black "Low, Zhen Yu Cyrus"]
[Result "0-1"]
[ECO "A00"]
[WhiteElo "2193"]
[BlackElo "2384"]
[Annotator "NA"]
[PlyCount "62"]
[EventDate "2018.12.26"]
[EventType "swiss"]
[EventCountry "ESP"]
[SourceTitle "playchess.com"]
[Source "ChessBase"]
[SourceQuality "1"]
[TimeControl "5400+30"]

1. Nc3 {[%emt 0:00:00]} d5 {[%emt 0:00:05]} 2. e4 {[%emt 0:00:00]} dxe4 {[%emt 0:00:04]} 3. Nxe4 {[%emt 0:00:00]} Nf6 {[%emt 0:00:05]} 4. Nxf6+ {[%emt 0:00:15]} exf6 {[%emt 0:00:06]} 5. d4 {[%emt 0:00:15]} Bd6 {[%emt 0:00:08]} 6. Bd3 {[%emt 0:02:13]} O-O {[%emt 0:00:19]} 7. Qf3 {[%emt 0:04:16]} Re8+ {[%emt 0:07:18]} 8. Ne2 {[%emt 0:05:43]} Nd7 {[%emt 0:00:07]} 9. Bf4 {[%emt 0:01:52]} Nf8 {[%emt 0:04:27]} 10. O-O-O {[%emt 0:04:40]} c6 {[%emt 0:03:08]} 11. Kb1 {[%emt 0:09:53]} Be6 {[%emt 0:08:16]} 12. c4 {[%emt 0:17:07]} Qc7 {[%emt 0:06:38]} 13. Bg3 {[%emt 0:11:45]} a6 {[%emt 0:09:53]} 14. Nc3 {[%emt 0:03:31]} Rad8 {[%emt 0:03:12]} 15. c5 {[%emt 0:09:03]} Bxg3 {[%emt 0:00:08]} 16. hxg3 {[%emt 0:00:02]} b6 {[%emt 0:04:05]} 17. Bxh7+ {[%emt 0:06:50]} Nxh7 {[%emt 0:00:11]} 18. Qh5 {[%emt 0:00:17]} bxc5 {[%emt 0:02:37]} 19. Qxh7+ {[%emt 0:00:15]} Kf8 {[%emt 0:00:00]} 20. dxc5 {[%emt 0:01:15]} Qe5 {[%emt 0:04:56]} 21. Qh8+ {[%emt 0:03:47]} Ke7 {[%emt 0:00:00]} 22. Qxg7 {[%emt 0:00:10]} Rb8 {[%emt 0:03:27]} 23. Rc1 {[%emt 0:04:02]} Rb4 {[%emt 0:07:18]} 24. Ka1 {[%emt 0:03:30]} Qxc5 {[%emt 0:04:56]} 25. Rhe1 {[%emt 0:03:13]} Qxf2 {[%emt 0:03:13]} 26. Re2 {[%emt 0:00:11]} Qf5 {[%emt 0:00:07]} 27. Rce1 {[%emt 0:01:42]} Kd6 {[%emt 0:07:04]} 28. Ne4+ {[%emt 0:03:09]} Kc7 {[%emt 0:00:53]} 29. Qxf6 {[%emt 0:00:45]} Rxe4 {[%emt 0:00:13]} 30. Qc3 {[%emt 0:02:11]} Rxe2 {[%emt 0:00:17]} 31. Rxe2 {[%emt 0:00:02]} Qd5 {[%emt 0:00:30]} 0-1

[Event "VII Lorca Open 2018"]
[Site "Lorca"]
[Date "2018.12.28"]
[Round "5"]
[White "Ajay Karthikeyan"]
[Black "Serarols Mabras, Bernat"]
[Result "1-0"]
[ECO "D00"]
[WhiteElo "2143"]
[BlackElo "2371"]
[Annotator "NA"]
[PlyCount "101"]
[EventDate "2018.12.26"]
[EventType "swiss"]
[EventCountry "ESP"]
[SourceTitle "playchess.com"]
[Source "ChessBase"]
[SourceQuality "1"]
[TimeControl "5400+30"]

1. d4 {[%emt 0:05:16]} d5 {[%emt 0:00:00]} 2. Bf4 {[%emt 0:00:17]} c5 {[%emt 0:00:00]} 3. e3 {[%emt 0:00:06]} Nc6 {[%emt 0:00:10]} 4. c3 {[%emt 0:00:37]} Nf6 {[%emt 0:00:18]} 5. Nd2 {[%emt 0:00:02]} Bf5 {[%emt 0:00:25]} 6. Qb3 {[%emt 0:00:04]} Qd7 {[%emt 0:00:18]} 7. Ngf3 {[%emt 0:00:03]} c4 {[%emt 0:00:16]} 8. Qd1 {[%emt 0:00:03]} e6 {[%emt 0:00:26]} 9. Be2 {[%emt 0:01:11]} Be7 {[%emt 0:01:03]} 10. O-O {[%emt 0:00:24]} b5 {[%emt 0:01:02]} 11. Ne5 {[%emt 0:16:43]} Nxe5 {[%emt 0:00:13]} 12. Bxe5 {[%emt 0:00:27]} O-O {[%emt 0:06:28]} 13. Bf3 {[%emt 0:07:24]} b4 {[%emt 0:16:35]} 14. Re1 {[%emt 0:15:08]} bxc3 {[%emt 0:01:17]} 15. bxc3 {[%emt 0:00:26]} Qc6 {[%emt 0:12:55]} 16. Bxf6 {[%emt 0:04:54]} Bxf6 {[%emt 0:00:52]} 17. e4 {[%emt 0:02:02]} Bg6 {[%emt 0:00:49]} 18. exd5 {[%emt 0:00:47]} exd5 {[%emt 0:00:12]} 19. Nf1 {[%emt 0:00:30]} Rfd8 {[%emt 0:16:35]} 20. Ne3 {[%emt 0:02:25]} Rab8 {[%emt 0:01:49]} 21. g3 {[%emt 0:06:44]} h6 {[%emt 0:08:35]} 22. h4 {[%emt 0:03:59]} Rb2 {[%emt 0:02:41]} 23. Qc1 {[%emt 0:00:49]} Rb7 {[%emt 0:02:35]} 24. Qa3 {[%emt 0:05:23]} Be4 {[%emt 0:07:16]} 25. Bxe4 {[%emt 0:00:02]} dxe4 {[%emt 0:00:02]} 26. Rab1 {[%emt 0:02:31]} Rdb8 {[%emt 0:02:23]} 27. Rxb7 {[%emt 0:00:02]} Rxb7 {[%emt 0:00:12]} 28. Qa5 {[%emt 0:01:12]} a6 {[%emt 0:03:44]} 29. Qd5 {[%emt 0:02:29]} Qxd5 {[%emt 0:07:14]} 30. Nxd5 {[%emt 0:00:02]} Rb5 {[%emt 0:01:25]} 31. Nxf6+ {[%emt 0:01:27]} gxf6 {[%emt 0:00:02]} 32. Rxe4 {[%emt 0:00:08]} Rb1+ {[%emt 0:00:15]} 33. Kg2 {[%emt 0:00:02]} Rc1 {[%emt 0:00:10]} 34. Re3 {[%emt 0:01:22]} Rc2 {[%emt 0:00:19]} 35. Kf3 {[%emt 0:01:23]} Kf8 {[%emt 0:00:07]} 36. Ke4 {[%emt 0:00:55]} Rxf2 {[%emt 0:01:21]} 37. Kd5 {[%emt 0:00:02]} Rxa2 {[%emt 0:00:24]} 38. Kxc4 {[%emt 0:01:19]} a5 {[%emt 0:01:04]} 39. Kc5 {[%emt 0:01:53]} a4 {[%emt 0:00:37]} 40. c4 {[%emt 0:00:10]} Rb2 {[%emt 0:03:46]} 41. Ra3 {[%emt 0:01:43]} Rb3 {[%emt 0:00:01]} 42. Rxa4 {[%emt 0:00:01]} Rxg3 {[%emt 0:00:02]} 43. d5 {[%emt 0:00:27]} f5 {[%emt 0:00:36]} 44. Kd6 {[%emt 0:00:37]} Rg4 {[%emt 0:00:34]} 45. Ra8+ {[%emt 0:00:36]} Kg7 {[%emt 0:00:01]} 46. c5 {[%emt 0:00:08]} f4 {[%emt 0:00:36]} 47. c6 {[%emt 0:01:26]} f3 {[%emt 0:00:08]} 48. c7 {[%emt 0:00:16]} f2 {[%emt 0:00:08]} 49. c8=Q {[%emt 0:00:24]} f1=Q {[%emt 0:01:58]} 50. Qxg4+ {[%emt 0:00:11]} Kf6 {[%emt 0:00:04]} 51. Qd4+ {[%emt 0:00:12]} 1-0

[Event "VII Lorca Open 2018"]
[Site "Lorca"]
[Date "2018.12.28"]
[Round "5"]
[White "Redondo Benavente, Ana"]
[Black "Luch, Michal"]
[Result "0-1"]
[ECO "B51"]
[WhiteElo "2140"]
[BlackElo "2360"]
[Annotator "NA"]
[PlyCount "112"]
[EventDate "2018.12.26"]
[EventType "swiss"]
[EventCountry "ESP"]
[SourceTitle "playchess.com"]
[Source "ChessBase"]
[SourceQuality "1"]
[TimeControl "5400+30"]

1. e4 {[%emt 0:00:32]} c5 {[%emt 0:00:00]} 2. Nf3 {[%emt 0:00:05]} d6 {[%emt 0:02:54]} 3. Bb5+ {[%emt 0:01:21]} Nd7 {[%emt 0:00:09]} 4. O-O {[%emt 0:00:26]} a6 {[%emt 0:00:38]} 5. Bd3 {[%emt 0:00:06]} b5 {[%emt 0:12:00]} 6. c3 {[%emt 0:00:55]} Bb7 {[%emt 0:03:58]} 7. a4 {[%emt 0:02:15]} Qb6 {[%emt 0:16:40]} 8. axb5 {[%emt 0:06:31]} axb5 {[%emt 0:00:02]} 9. Rxa8+ {[%emt 0:00:08]} Bxa8 {[%emt 0:00:01]} 10. Qe2 {[%emt 0:01:04]} c4 {[%emt 0:07:50]} 11. Bc2 {[%emt 0:00:34]} Nc5 {[%emt 0:00:02]} 12. d4 {[%emt 0:11:15]} cxd3 {[%emt 0:00:07]} 13. Bxd3 {[%emt 0:00:04]} Nxd3 {[%emt 0:00:04]} 14. Qxd3 {[%emt 0:00:04]} Nf6 {[%emt 0:00:05]} 15. Be3 {[%emt 0:09:21]} Qb8 {[%emt 0:00:12]} 16. Nbd2 {[%emt 0:05:48]} e5 {[%emt 0:00:08]} 17. Ra1 {[%emt 0:03:39]} Be7 {[%emt 0:01:38]} 18. Ra6 {[%emt 0:08:55]} O-O {[%emt 0:01:23]} 19. Rb6 {[%emt 0:06:06]} Qa7 {[%emt 0:00:02]} 20. h3 {[%emt 0:01:20]} Qa1+ {[%emt 0:00:53]} 21. Kh2 {[%emt 0:00:01]} Qxb2 {[%emt 0:00:27]} 22. Rxb5 {[%emt 0:01:03]} Qa3 {[%emt 0:02:08]} 23. Qc2 {[%emt 0:11:15]} Bc6 {[%emt 0:06:15]} 24. Rb4 {[%emt 0:05:30]} Qa8 {[%emt 0:05:49]} 25. Rc4 {[%emt 0:04:24]} h6 {[%emt 0:05:55]} 26. Ne1 {[%emt 0:03:12]} Rd8 {[%emt 0:02:06]} 27. Bb6 {[%emt 0:04:06]} Rb8 {[%emt 0:00:55]} 28. Be3 {[%emt 0:01:20]} Rd8 {[%emt 0:03:37]} 29. Bb6 {[%emt 0:00:12]} Rd7 {[%emt 0:00:05]} 30. Be3 {[%emt 0:01:26]} Qa6 {[%emt 0:03:39]} 31. Rb4 {[%emt 0:02:49]} Rd8 {[%emt 0:04:32]} 32. Rb6 {[%emt 0:04:31]} Qa8 {[%emt 0:00:11]} 33. f3 {[%emt 0:00:13]} d5 {[%emt 0:00:33]} 34. Nd3 {[%emt 0:06:29]} dxe4 {[%emt 0:04:56]} 35. Nxe5 {[%emt 0:00:00]} Bd6 {[%emt 0:00:15]} 36. Ndc4 {[%emt 0:00:00]} Bc7 {[%emt 0:03:29]} 37. Rb2 {[%emt 0:00:00]} exf3 {[%emt 0:02:10]} 38. g3 {[%emt 0:00:29]} Be4 {[%emt 0:00:58]} 39. Qb3 {[%emt 0:00:22]} Bd5 {[%emt 0:03:30]} 40. Qb4 {[%emt 0:00:32]} Bxc4 {[%emt 0:06:23]} 41. Nxc4 {[%emt 0:00:08]} Qe4 {[%emt 0:00:01]} 42. Bf2 {[%emt 0:01:32]} Rb8 {[%emt 0:01:25]} 43. Qc5 {[%emt 0:00:32]} Rxb2 {[%emt 0:00:17]} 44. Nxb2 {[%emt 0:00:01]} Qe2 {[%emt 0:00:19]} 45. Nd3 {[%emt 0:01:17]} Bxg3+ {[%emt 0:00:41]} 46. Kg1 {[%emt 0:00:24]} Qd1+ {[%emt 0:01:15]} 47. Ne1 {[%emt 0:00:01]} Bxf2+ {[%emt 0:00:20]} 48. Qxf2 {[%emt 0:00:03]} Ne4 {[%emt 0:00:10]} 49. Qxf3 {[%emt 0:01:00]} Qxe1+ {[%emt 0:00:06]} 50. Kg2 {[%emt 0:00:08]} Qd2+ {[%emt 0:00:13]} 51. Kg1 {[%emt 0:00:14]} Nxc3 {[%emt 0:00:28]} 52. Qa8+ {[%emt 0:00:36]} Kh7 {[%emt 0:00:05]} 53. Qf3 {[%emt 0:00:23]} Qe1+ {[%emt 0:00:10]} 54. Kg2 {[%emt 0:00:09]} Qe4 {[%emt 0:00:06]} 55. h4 {[%emt 0:00:35]} Qxf3+ {[%emt 0:00:06]} 56. Kxf3 {[%emt 0:00:02]} Nd5 {[%emt 0:00:03]} 0-1

[Event "VII Lorca Open 2018"]
[Site "Lorca"]
[Date "2018.12.28"]
[Round "5"]
[White "Guerrero Mendez, Jesus"]
[Black "Ramiro Ovejero, Juan Luis"]
[Result "0-1"]
[ECO "B07"]
[WhiteElo "1905"]
[BlackElo "2358"]
[Annotator "NA"]
[PlyCount "64"]
[EventDate "2018.12.26"]
[EventType "swiss"]
[EventCountry "ESP"]
[SourceTitle "playchess.com"]
[Source "ChessBase"]
[SourceQuality "1"]
[TimeControl "5400+30"]

1. e4 {[%emt 0:00:00]} d6 {[%emt 0:00:29]} 2. d4 {[%emt 0:00:00]} Nf6 {[%emt 0:00:06]} 3. Nc3 {[%emt 0:00:00]} c6 {[%emt 0:00:55]} 4. a4 {[%emt 0:00:12]} Qa5 {[%emt 0:00:05]} 5. Bd2 {[%emt 0:02:31]} Qc7 {[%emt 0:00:46]} 6. h3 {[%emt 0:01:13]} e5 {[%emt 0:00:14]} 7. Be3 {[%emt 0:00:51]} d5 {[%emt 0:11:50]} 8. exd5 {[%emt 0:01:43]} Bb4 {[%emt 0:00:07]} 9. Nf3 {[%emt 0:06:29]} e4 {[%emt 0:03:04]} 10. Ne5 {[%emt 0:01:58]} cxd5 {[%emt 0:00:10]} 11. Bb5+ {[%emt 0:01:28]} Nbd7 {[%emt 0:00:32]} 12. Bd2 {[%emt 0:00:38]} O-O {[%emt 0:12:03]} 13. Nxd7 {[%emt 0:02:47]} Bxd7 {[%emt 0:00:11]} 14. Bxd7 {[%emt 0:01:36]} Qxd7 {[%emt 0:01:41]} 15. Ne2 {[%emt 0:07:43]} Bxd2+ {[%emt 0:04:46]} 16. Qxd2 {[%emt 0:01:18]} Ne8 {[%emt 0:00:07]} 17. b3 {[%emt 0:03:46]} Nd6 {[%emt 0:00:59]} 18. Nf4 {[%emt 0:01:56]} Nf5 {[%emt 0:07:16]} 19. g4 {[%emt 0:02:24]} Nh4 {[%emt 0:00:26]} 20. O-O-O {[%emt 0:00:28]} a5 {[%emt 0:04:32]} 21. Qe2 {[%emt 0:01:08]} Qd6 {[%emt 0:01:39]} 22. Nh5 {[%emt 0:00:55]} Qa3+ {[%emt 0:03:16]} 23. Kb1 {[%emt 0:01:39]} Rfc8 {[%emt 0:00:06]} 24. Qb5 {[%emt 0:01:40]} Rxc2 {[%emt 0:02:33]} 25. Kxc2 {[%emt 0:00:41]} Qa2+ {[%emt 0:00:04]} 26. Kc3 {[%emt 0:00:26]} Rc8+ {[%emt 0:00:06]} 27. Qc5 {[%emt 0:00:35]} Rxc5+ {[%emt 0:00:05]} 28. dxc5 {[%emt 0:00:01]} Qxf2 {[%emt 0:01:15]} 29. Rxd5 {[%emt 0:01:11]} h6 {[%emt 0:01:04]} 30. Rhd1 {[%emt 0:02:57]} g6 {[%emt 0:00:30]} 31. Rd8+ {[%emt 0:02:42]} Kh7 {[%emt 0:00:04]} 32. Rf8 {[%emt 0:00:29]} Qxc5+ {[%emt 0:00:15]} 0-1

[Event "VII Lorca Open 2018"]
[Site "Lorca"]
[Date "2018.12.28"]
[Round "5"]
[White "Arjun C Krishnamachari"]
[Black "Pogorelov, Ruslan"]
[Result "0-1"]
[ECO "C00"]
[WhiteElo "1895"]
[BlackElo "2354"]
[Annotator "NA"]
[PlyCount "86"]
[EventDate "2018.12.26"]
[EventType "swiss"]
[EventCountry "ESP"]
[SourceTitle "playchess.com"]
[Source "ChessBase"]
[SourceQuality "1"]
[TimeControl "5400+30"]

1. e4 {[%emt 1:30:30]} c5 {[%emt 1:30:30]} 2. Nf3 {[%emt 0:00:30]} e6 {[%emt 0:00:30]} 3. b4 {[%emt 0:00:30]} cxb4 {[%emt 0:00:30]} 4. a3 {[%emt 0:00:30]} Nc6 {[%emt 0:00:30]} 5. axb4 {[%emt 0:00:30]} Bxb4 {[%emt 0:00:30]} 6. c3 {[%emt 0:00:30]} Be7 {[%emt 0:00:30]} 7. d4 {[%emt 0:00:30]} d5 {[%emt 0:00:30]} 8. e5 {[%emt 0:00:30]} Nh6 {[%emt 0:00:30]} 9. Bd3 {[%emt 0:00:30]} Nf5 {[%emt 0:00:30]} 10. h4 {[%emt 0:00:30]} h5 {[%emt 0:00:30]} 11. g3 {[%emt 0:00:30]} g6 {[%emt 0:00:30]} 12. Kf1 {[%emt 0:00:30]} a6 {[%emt 0:00:30]} 13. Na3 {[%emt 0:00:30]} Rb8 {[%emt 0:00:30]} 14. Nc2 {[%emt 0:00:30]} b5 {[%emt 0:00:30]} 15. Bg5 {[%emt 0:00:30]} Bxg5 {[%emt 0:00:30]} 16. hxg5 {[%emt 0:00:30]} Kd7 {[%emt 0:00:30]} 17. Qd2 {[%emt 0:00:30]} Bb7 {[%emt 0:00:30]} 18. Bxf5 {[%emt 0:00:30]} gxf5 {[%emt 0:00:30]} 19. Nce1 {[%emt 0:00:30]} Na5 {[%emt 0:00:30]} 20. Qa2 {[%emt 0:00:30]} Nc4 {[%emt 0:00:30]} 21. Nd3 {[%emt 0:00:30]} a5 {[%emt 0:00:30]} 22. Nf4 {[%emt 0:00:30]} b4 {[%emt 0:00:30]} 23. cxb4 {[%emt 0:00:30]} axb4 {[%emt 0:00:30]} 24. Nxh5 {[%emt 0:00:30]} Ra8 {[%emt 0:00:30]} 25. Qb1 {[%emt 0:00:30]} Qb6 {[%emt 0:00:30]} 26. Rxa8 {[%emt 0:00:30]} Rxa8 {[%emt 0:00:30]} 27. Nf6+ {[%emt 0:00:30]} Kc6 {[%emt 0:00:30]} 28. Kg2 {[%emt 0:00:30]} b3 {[%emt 0:00:30]} 29. Qd3 {[%emt 0:00:30]} b2 {[%emt 0:00:30]} 30. Nd2 {[%emt 0:00:30]} Qb4 {[%emt 0:00:30]} 31. Nb1 {[%emt 0:00:30]} Ra1 {[%emt 0:00:30]} 32. Qc3 {[%emt 0:00:30]} Qxc3 {[%emt 0:00:30]} 33. Nxc3 {[%emt 0:00:30]} Rxh1 {[%emt 0:00:30]} 34. Kxh1 {[%emt 0:00:30]} Na3 {[%emt 0:00:30]} 35. Ne8 {[%emt 0:00:30]} Ba6 {[%emt 0:00:30]} 36. Nd6 {[%emt 0:00:30]} Bd3 {[%emt 0:00:30]} 37. Kh2 {[%emt 0:00:30]} Nb5 {[%emt 0:00:30]} 38. Ndxb5 {[%emt 0:00:30]} Bxb5 {[%emt 0:00:30]} 39. Kh3 {[%emt 0:00:30]} Kb6 {[%emt 0:00:30]} 40. g4 {[%emt 0:00:30]} fxg4+ {[%emt 0:00:30]} 41. Kxg4 {[%emt 0:00:30]} Ka5 {[%emt 0:00:30]} 42. Nb1 {[%emt 0:00:30]} Bd3 {[%emt 0:00:30]} 43. Nd2 {[%emt 0:00:30]} Kb4 {[%emt 0:00:30]} 0-1

[Event "VII Lorca Open 2018"]
[Site "Lorca"]
[Date "2018.12.29"]
[Round "6"]
[White "Svetushkin, Dmitry"]
[Black "Bjerre, Jonas Buhl"]
[Result "1/2-1/2"]
[ECO "B52"]
[WhiteElo "2592"]
[BlackElo "2421"]
[Annotator "ChessBase"]
[PlyCount "103"]
[EventDate "2018.12.26"]
[EventType "swiss"]
[EventCountry "ESP"]
[SourceTitle "playchess.com"]
[Source "ChessBase"]
[SourceQuality "1"]
[TimeControl "5400+30"]

1. e4 {[%emt 0:00:10]} c5 {[%emt 0:00:00]} 2. Nf3 {[%emt 0:00:18]} d6 {[%emt 0:00:00]} 3. Bb5+ {[%emt 0:00:07]} Bd7 {[%emt 0:00:26]} 4. Bxd7+ {[%emt 0:00:22]} Nxd7 {[%emt 0:00:08]} 5. O-O {[%emt 0:00:21]} Ngf6 {[%emt 0:00:12]} 6. Qe2 {[%emt 0:00:08]} e6 {[%emt 0:00:14]} 7. d3 {[%emt 0:00:45]} Be7 {[%emt 0:01:22]} 8. Ng5 {[%emt 0:00:07]} h6 {[%emt 0:03:25]} 9. Nh3 {[%emt 0:00:07]} O-O {[%emt 0:03:22]} 10. f4 {[%emt 0:00:11]} Nb8 {[%emt 0:17:44]} 11. Kh1 {[%emt 0:09:41]} Nc6 {[%emt 0:01:22]} 12. g4 {[%emt 0:00:24]} d5 {[%emt 0:06:13]} 13. e5 {[%emt 0:01:11]} Nd7 {[%emt 0:01:24]} 14. Nd2 {[%emt 0:00:53]} f6 {[%emt 0:05:24]} 15. exf6 {[%emt 0:00:51]} Rxf6 {[%emt 0:00:26]} 16. Nf3 {[%emt 0:00:07]} Nf8 {[%emt 0:06:59]} 17. Bd2 {[%emt 0:08:05]} Rf7 {[%emt 0:09:33]} 18. g5 {[%emt 0:08:22]} hxg5 {[%emt 0:03:22]} 19. fxg5 {[%emt 0:00:25]} Ng6 {[%emt 0:05:10]} 20. Qxe6 {[%emt 0:12:54]} Qd6 {[%emt 0:00:25]} 21. Qg4 {[%emt 0:03:18]} Raf8 {[%emt 0:01:30]} 22. Qg2 {[%emt 0:05:25]} Bd8 {[%emt 0:04:23]} 23. Be1 {[%emt 0:05:57]} Qd7 {[%emt 0:04:48]} 24. Bg3 {[%emt 0:00:56]} Qg4 {[%emt 0:03:39]} 25. Bd6 {[%emt 0:02:27]} Qxg2+ {[%emt 0:01:37]} 26. Kxg2 {[%emt 0:00:16]} Be7 {[%emt 0:03:00]} 27. Bg3 {[%emt 0:01:12]} Nb4 {[%emt 0:01:42]} 28. Rac1 {[%emt 0:01:40]} Nxa2 {[%emt 0:00:49]} 29. Rce1 {[%emt 0:00:05]} Nb4 {[%emt 0:00:37]} 30. Re6 {[%emt 0:18:41]} Nxc2 {[%emt 0:01:45]} 31. Rf2 {[%emt 0:02:17]} Rxf3 {[%emt 0:01:39]} 32. Rxc2 {[%emt 0:00:17]} Kf7 {[%emt 0:01:16]} 33. Rce2 {[%emt 0:00:05]} Rxd3 {[%emt 0:02:45]} 34. Nf4 {[%emt 0:02:01]} Nxf4+ {[%emt 0:01:04]} 35. Bxf4 {[%emt 0:00:04]} Kg8 {[%emt 0:01:43]} 36. Bd2 {[%emt 0:06:50]} Bd8 {[%emt 0:01:17]} 37. Rd6 {[%emt 0:00:50]} d4 {[%emt 0:01:37]} 38. Rd7 {[%emt 0:00:56]} Rb3 {[%emt 0:01:37]} 39. Bc1 {[%emt 0:00:23]} d3 {[%emt 0:01:42]} 40. Re5 {[%emt 0:00:23]} c4 {[%emt 0:00:34]} 41. h4 {[%emt 0:03:14]} d2 {[%emt 0:02:34]} 42. Bxd2 {[%emt 0:02:27]} Rxb2 {[%emt 0:00:11]} 43. Kh3 {[%emt 0:00:23]} Rb3+ {[%emt 0:01:25]} 44. Kg4 {[%emt 0:00:08]} c3 {[%emt 0:00:32]} 45. Bc1 {[%emt 0:00:59]} c2 {[%emt 0:00:41]} 46. Rc5 {[%emt 0:01:57]} g6 {[%emt 0:00:42]} 47. Rxc2 {[%emt 0:00:49]} Bb6 {[%emt 0:00:25]} 48. Bb2 {[%emt 0:02:02]} Rb4+ {[%emt 0:00:14]} 49. Kh3 {[%emt 0:00:09]} Rb3+ {[%emt 0:00:21]} 50. Kg4 {[%emt 0:02:10]} Rb4+ {[%emt 0:00:30]} 51. Kh3 {[%emt 0:00:08]} Rb3+ {[%emt 0:00:14]} 52. Kg4 {[%emt 0:00:32]} 1/2-1/2

[Event "VII Lorca Open 2018"]
[Site "Lorca"]
[Date "2018.12.29"]
[Round "6"]
[White "Ibarra Jerez, Jose Carlos"]
[Black "Merario Alarcon, Andres"]
[Result "1/2-1/2"]
[ECO "A14"]
[WhiteElo "2558"]
[BlackElo "2404"]
[Annotator "ChessBase"]
[PlyCount "111"]
[EventDate "2018.12.26"]
[EventType "swiss"]
[EventCountry "ESP"]
[SourceTitle "playchess.com"]
[Source "ChessBase"]
[SourceQuality "1"]
[TimeControl "5400+30"]

1. Nf3 {[%emt 0:00:00]} d5 {[%emt 0:00:00]} 2. b3 {[%emt 0:00:26]} Nf6 {[%emt 0:00:00]} 3. Bb2 {[%emt 0:00:53]} e6 {[%emt 0:00:00]} 4. g3 {[%emt 0:02:26]} Be7 {[%emt 0:00:36]} 5. Bg2 {[%emt 0:00:38]} O-O {[%emt 0:00:19]} 6. O-O {[%emt 0:00:10]} b6 {[%emt 0:04:45]} 7. c4 {[%emt 0:02:02]} Bb7 {[%emt 0:00:40]} 8. e3 {[%emt 0:03:42]} dxc4 {[%emt 0:04:46]} 9. bxc4 {[%emt 0:00:42]} c5 {[%emt 0:00:07]} 10. d3 {[%emt 0:02:32]} Qc7 {[%emt 0:03:33]} 11. Nc3 {[%emt 0:00:53]} a6 {[%emt 0:01:05]} 12. Qe2 {[%emt 0:01:54]} Nc6 {[%emt 0:01:57]} 13. Rfd1 {[%emt 0:01:14]} Rfd8 {[%emt 0:02:58]} 14. Rab1 {[%emt 0:02:50]} Rab8 {[%emt 0:01:49]} 15. Ba1 {[%emt 0:02:34]} Na5 {[%emt 0:10:09]} 16. Ne1 {[%emt 0:19:06]} Bxg2 {[%emt 0:00:56]} 17. Nxg2 {[%emt 0:01:44]} Qc6 {[%emt 0:01:53]} 18. a4 {[%emt 0:01:42]} Ne8 {[%emt 0:02:04]} 19. Nf4 {[%emt 0:02:32]} Nf6 {[%emt 0:13:43]} 20. f3 {[%emt 0:10:41]} Rb7 {[%emt 0:05:43]} 21. Ne4 {[%emt 0:06:19]} Nxe4 {[%emt 0:01:46]} 22. fxe4 {[%emt 0:01:00]} Bf8 {[%emt 0:17:31]} 23. Rf1 {[%emt 0:12:14]} Kh8 {[%emt 0:03:36]} 24. Qg4 {[%emt 0:02:00]} Qd7 {[%emt 0:04:41]} 25. Rf2 {[%emt 0:02:06]} Nc6 {[%emt 0:03:05]} 26. Rbf1 {[%emt 0:00:36]} Re8 {[%emt 0:05:04]} 27. Qh5 {[%emt 0:02:57]} Kg8 {[%emt 0:03:25]} 28. Qg4 {[%emt 0:02:36]} e5 {[%emt 0:01:07]} 29. Qxd7 {[%emt 0:00:44]} Rxd7 {[%emt 0:00:01]} 30. Nd5 {[%emt 0:00:12]} Rb7 {[%emt 0:01:55]} 31. Bc3 {[%emt 0:01:32]} Reb8 {[%emt 0:00:38]} 32. Rb2 {[%emt 0:00:28]} b5 {[%emt 0:01:08]} 33. Rfb1 {[%emt 0:02:33]} b4 {[%emt 0:00:06]} 34. Be1 {[%emt 0:00:09]} a5 {[%emt 0:00:29]} 35. g4 {[%emt 0:00:19]} Re8 {[%emt 0:00:41]} 36. Bg3 {[%emt 0:00:26]} Na7 {[%emt 0:00:37]} 37. Rf1 {[%emt 0:01:01]} Nc8 {[%emt 0:00:32]} 38. Rbf2 {[%emt 0:01:35]} Bd6 {[%emt 0:00:53]} 39. Rf5 {[%emt 0:00:54]} Re6 {[%emt 0:00:54]} 40. Kg2 {[%emt 0:00:31]} Re8 {[%emt 0:00:19]} 41. h4 {[%emt 0:01:02]} h6 {[%emt 0:01:29]} 42. R5f2 {[%emt 0:01:09]} Na7 {[%emt 0:00:28]} 43. Kf3 {[%emt 0:00:42]} Nc6 {[%emt 0:00:14]} 44. Ke2 {[%emt 0:00:24]} Bf8 {[%emt 0:00:18]} 45. Kd2 {[%emt 0:00:16]} Re6 {[%emt 0:00:09]} 46. Rf5 {[%emt 0:01:25]} Bd6 {[%emt 0:00:31]} 47. Bh2 {[%emt 0:00:49]} Bf8 {[%emt 0:00:53]} 48. Kc2 {[%emt 0:00:19]} Bd6 {[%emt 0:00:15]} 49. R1f2 {[%emt 0:00:59]} Bf8 {[%emt 0:00:06]} 50. g5 {[%emt 0:01:03]} h5 {[%emt 0:00:22]} 51. g6 {[%emt 0:00:39]} Rxg6 {[%emt 0:00:10]} 52. Bxe5 {[%emt 0:01:35]} f6 {[%emt 0:02:27]} 53. Bb2 {[%emt 0:00:53]} b3+ {[%emt 0:00:15]} 54. Kd2 {[%emt 0:00:42]} Bd6 {[%emt 0:00:20]} 55. Kc1 {[%emt 0:05:52]} Be5 {[%emt 0:00:15]} 56. Kb1 {[%emt 0:01:18]} 1/2-1/2